Workbook

Sheet Suivi des notes
B1: Entrez vos notes ici
C3: Cours | D3: Type | E3: Description | F3: Note
C4: Anglais | D4: Devoirs | E4: Histoire de la Seconde Guerre mondiale | F4: 80%
C5: Programmation avancée en Java | D5: Examen partiel | F5: 75%
C6: Espagnol | D6: Devoirs | F6: 50%
C7: Physique théorique | D7: Devoirs | F7: 95%
C8: Anglais | D8: Devoirs | E8: Histoire de la Première Guerre mondiale | F8: 90%
C9: Anglais | D9: Devoirs | E9: Pages 30 à 41 | F9: 80%
C10: Composition | D10: Dissertation | E10: Épreuve d’argumentation | F10: 95%
C11: Mathématiques 1 | D11: Devoirs | E11: Pages 21 et 26 | F11: 80%
C12: Mathématiques 2 | D12: Devoirs | E12: Pages 15 et 18 | F12: 85%
C13: Mathématiques 1 | D13: Devoirs | E13: Pages 34 à 36 | F13: 80%
C14: Mathématiques 2 | D14: Questionnaire | F14: 95%

Sheet Vos performances
B1: Vos performances
C3: Totaux
C4: ="Heures : "&SUM(tblCours[Crédit (heures)]) -> Heures : 24 | D4: =AVERAGE(D7:D31) -> 81% | E4: =AVERAGE(E7:E31) -> 2.71 | F4: =SUM(F7:F31) -> 2.63 | G4: =IFERROR(HLOOKUP(D4,_1erTableauCorrespondanceMoyenne,2),"") -> B-
C6: Cours | D6: % | E6: MOYENNE | F6: Moyenne pondérée | G6: Lettre | H6: Performance globale
C7: =Calculs!C6 -> Anglais | D7: =Calculs!AL6 -> 83% | E7: =Calculs!AM6 -> 3.00 | F7: =IFERROR(E7*Paramètres!D9/SUM(tblCours[Crédit (heures)]),"") -> 0.38 | G7: =Calculs!AN6 -> B
C8: =Calculs!C7 -> Physique théorique | D8: =Calculs!AL7 -> 95% | E8: =Calculs!AM7 -> 4.00 | F8: =IFERROR(E8*Paramètres!D10/SUM(tblCours[Crédit (heures)]),"") -> 0.50 | G8: =Calculs!AN7 -> A
C9: =Calculs!C8 -> Mathématiques 1 | D9: =Calculs!AL8 -> 80% | E9: =Calculs!AM8 -> 2.67 | F9: =IFERROR(E9*Paramètres!D11/SUM(tblCours[Crédit (heures)]),"") -> 0.45 | G9: =Calculs!AN8 -> B-
C10: =Calculs!C9 -> Mathématiques 2 | D10: =Calculs!AL9 -> 89% | E10: =Calculs!AM9 -> 3.33 | F10: =IFERROR(E10*Paramètres!D12/SUM(tblCours[Crédit (heures)]),"") -> 0.56 | G10: =Calculs!AN9 -> B+
C11: =Calculs!C10 -> Programmation avancée en Java | D11: =Calculs!AL10 -> 75% | E11: =Calculs!AM10 -> 2.00 | F11: =IFERROR(E11*Paramètres!D13/SUM(tblCours[Crédit (heures)]),"") -> 0.42 | G11: =Calculs!AN10 -> C
C12: =Calculs!C11 -> Espagnol | D12: =Calculs!AL11 -> 50% | E12: =Calculs!AM11 -> 0.00 | F12: =IFERROR(E12*Paramètres!D14/SUM(tblCours[Crédit (heures)]),"") -> 0.00 | G12: =Calculs!AN11 -> F
C13: =Calculs!C12 -> Composition | D13: =Calculs!AL12 -> 95% | E13: =Calculs!AM12 -> 4.00 | F13: =IFERROR(E13*Paramètres!D15/SUM(tblCours[Crédit (heures)]),"") -> 0.33 | G13: =Calculs!AN12 -> A
C14: =Calculs!C13 ->  | D14: =Calculs!AL13 ->  | E14: =Calculs!AM13 ->  | F14: =IFERROR(E14*Paramètres!D16/SUM(tblCours[Crédit (heures)]),"") ->  | G14: =Calculs!AN13 -> 
C15: =Calculs!C14 ->  | D15: =Calculs!AL14 ->  | E15: =Calculs!AM14 ->  | F15: =IFERROR(E15*Paramètres!D17/SUM(tblCours[Crédit (heures)]),"") ->  | G15: =Calculs!AN14 -> 
C16: =Calculs!C15 ->  | D16: =Calculs!AL15 ->  | E16: =Calculs!AM15 ->  | F16: =IFERROR(E16*Paramètres!D18/SUM(tblCours[Crédit (heures)]),"") ->  | G16: =Calculs!AN15 -> 
C17: =Calculs!C16 ->  | D17: =Calculs!AL16 ->  | E17: =Calculs!AM16 ->  | F17: =IFERROR(E17*Paramètres!D19/SUM(tblCours[Crédit (heures)]),"") ->  | G17: =Calculs!AN16 -> 
C18: =Calculs!C17 ->  | D18: =Calculs!AL17 ->  | E18: =Calculs!AM17 ->  | F18: =IFERROR(E18*Paramètres!D20/SUM(tblCours[Crédit (heures)]),"") ->  | G18: =Calculs!AN17 -> 
C19: =Calculs!C18 ->  | D19: =Calculs!AL18 ->  | E19: =Calculs!AM18 ->  | F19: =IFERROR(E19*Paramètres!D21/SUM(tblCours[Crédit (heures)]),"") ->  | G19: =Calculs!AN18 -> 
C20: =Calculs!C19 ->  | D20: =Calculs!AL19 ->  | E20: =Calculs!AM19 ->  | F20: =IFERROR(E20*Paramètres!D22/SUM(tblCours[Crédit (heures)]),"") ->  | G20: =Calculs!AN19 -> 
C21: =Calculs!C20 ->  | D21: =Calculs!AL20 ->  | E21: =Calculs!AM20 ->  | F21: =IFERROR(E21*Paramètres!D23/SUM(tblCours[Crédit (heures)]),"") ->  | G21: =Calculs!AN20 -> 
C22: =Calculs!C21 ->  | D22: =Calculs!AL21 ->  | E22: =Calculs!AM21 ->  | F22: =IFERROR(E22*Paramètres!D24/SUM(tblCours[Crédit (heures)]),"") ->  | G22: =Calculs!AN21 -> 
C23: =Calculs!C22 ->  | D23: =Calculs!AL22 ->  | E23: =Calculs!AM22 ->  | F23: =IFERROR(E23*Paramètres!D25/SUM(tblCours[Crédit (heures)]),"") ->  | G23: =Calculs!AN22 -> 
C24: =Calculs!C23 ->  | D24: =Calculs!AL23 ->  | E24: =Calculs!AM23 ->  | F24: =IFERROR(E24*Paramètres!D26/SUM(tblCours[Crédit (heures)]),"") ->  | G24: =Calculs!AN23 -> 
C25: =Calculs!C24 ->  | D25: =Calculs!AL24 ->  | E25: =Calculs!AM24 ->  | F25: =IFERROR(E25*Paramètres!D27/SUM(tblCours[Crédit (heures)]),"") ->  | G25: =Calculs!AN24 -> 
C26: =Calculs!C25 ->  | D26: =Calculs!AL25 ->  | E26: =Calculs!AM25 ->  | F26: =IFERROR(E26*Paramètres!D28/SUM(tblCours[Crédit (heures)]),"") ->  | G26: =Calculs!AN25 -> 
C27: =Calculs!C26 ->  | D27: =Calculs!AL26 ->  | E27: =Calculs!AM26 ->  | F27: =IFERROR(E27*Paramètres!D29/SUM(tblCours[Crédit (heures)]),"") ->  | G27: =Calculs!AN26 -> 
C28: =Calculs!C27 ->  | D28: =Calculs!AL27 ->  | E28: =Calculs!AM27 ->  | F28: =IFERROR(E28*Paramètres!D30/SUM(tblCours[Crédit (heures)]),"") ->  | G28: =Calculs!AN27 -> 
C29: =Calculs!C28 ->  | D29: =Calculs!AL28 ->  | E29: =Calculs!AM28 ->  | F29: =IFERROR(E29*Paramètres!D31/SUM(tblCours[Crédit (heures)]),"") ->  | G29: =Calculs!AN28 -> 
C30: =Calculs!C29 ->  | D30: =Calculs!AL29 ->  | E30: =Calculs!AM29 ->  | F30: =IFERROR(E30*Paramètres!D32/SUM(tblCours[Crédit (heures)]),"") ->  | G30: =Calculs!AN29 -> 
C31: =Calculs!C30 ->  | D31: =Calculs!AL30 ->  | E31: =Calculs!AM30 ->  | F31: =IFERROR(E31*Paramètres!D33/SUM(tblCours[Crédit (heures)]),"") ->  | G31: =Calculs!AN30 -> 

Sheet Paramètres
B1: Paramètres
C2: Tableau de correspondance entre les notes et la moyenne
C3: Pourcentage | D3: 0% | E3: 60% | F3: 63% | G3: 67% | H3: 70% | I3: 73% | J3: 77% | K3: 80% | L3: 83% | M3: 87% | N3: 90% | O3: 93% | P3: 97%
C4: Note (lettre) | D4: F | E4: D- | F4: D | G4: D+ | H4: C- | I4: C | J4: C+ | K4: B- | L4: B | M4: B+ | N4: A- | O4: A | P4: A+
C5: MOYENNE | D5: 0 | E5: 0.67 | F5: 1 | G5: 1.33 | H5: 1.67 | I5: 2 | J5: 2.33 | K5: 2.67 | L5: 3 | M5: 3.33 | N5: 3.67 | O5: 4 | P5: 4
C7: Notes pondérées pour un maximum de 25 cours
C8: Vos cours | D8: Crédit (heures) | E8: Devoirs | F8: Dissertation | G8: Questionnaire | H8: Projet | I8: Examen partiel | J8: Examen final | K8: Autre | L8: % total
C9: Anglais | D9: 3.0 | E9: 10% | F9: 15% | G9: 15% | H9: 10% | I9: 20% | J9: 30% | L9: =SUM(tblCours[[#This Row],[Devoirs]:[Autre]]) -> 100%
C10: Physique théorique | D10: 3.0 | E10: 15% | F10: 15% | G10: 10% | H10: 10% | I10: 15% | J10: 30% | K10: 5% | L10: =SUM(tblCours[[#This Row],[Devoirs]:[Autre]]) -> 100%
C11: Mathématiques 1 | D11: 4.0 | E11: 10% | F11: 15% | G11: 15% | H11: 10% | I11: 20% | J11: 30% | L11: =SUM(tblCours[[#This Row],[Devoirs]:[Autre]]) -> 100%
C12: Mathématiques 2 | D12: 4.0 | E12: 15% | F12: 15% | G12: 10% | H12: 10% | I12: 15% | J12: 30% | K12: 5% | L12: =SUM(tblCours[[#This Row],[Devoirs]:[Autre]]) -> 100%
C13: Programmation avancée en Java | D13: 5.0 | E13: 15% | F13: 15% | G13: 10% | H13: 10% | I13: 20% | J13: 30% | L13: =SUM(tblCours[[#This Row],[Devoirs]:[Autre]]) -> 100%
C14: Espagnol | D14: 3.0 | E14: 10% | F14: 15% | G14: 17% | H14: 13% | I14: 20% | J14: 20% | K14: 5% | L14: =SUM(tblCours[[#This Row],[Devoirs]:[Autre]]) -> 100%
C15: Composition | D15: 2.0 | E15: 15% | F15: 15% | G15: 12% | H15: 15% | I15: 15% | J15: 25% | K15: 3% | L15: =SUM(tblCours[[#This Row],[Devoirs]:[Autre]]) -> 100%

Sheet Calculs (hidden)
B1: Calculs
C2: Cette feuille de calcul fournit des calculs pour vos notes et moyennes et doit rester cachée. Toutes les modifications apportées à cette feuille peuvent entraîner des erreurs.
C4: Liste des cours actuelle | D4: Notes (sur 1) | AC4: Calcul de la moyenne
C5: Cours | D5: 1 | E5: 2 | F5: 3 | G5: 4 | H5: 5 | I5: 6 | J5: 7 | K5: 8 | L5: 9 | M5: 10 | N5: 11 | O5: 12 | P5: 13 | Q5: 14 | R5: 15 | S5: 16 | T5: 17 | U5: 18 | V5: 19 | W5: 20 | X5: 21 | Y5: 22 | Z5: 23 | AA5: 24 | AB5: 25 | AC5: =tblCours[[#Headers],[Devoirs]] -> Devoirs | AD5: =tblCours[[#Headers],[Dissertation]] -> Dissertation | AE5: =tblCours[[#Headers],[Questionnaire]] -> Questionnaire | AF5: =tblCours[[#Headers],[Projet]] -> Projet | AG5: =tblCours[[#Headers],[Examen partiel]] -> Examen partiel | AH5: =tblCours[[#Headers],[Examen final]] -> Examen final | AI5: =tblCours[[#Headers],[Autre]] -> Autre | AJ5: Total | AK5: Nombre total de points possibles | AL5: Total en % | AM5: Note | AN5: Note (lettre)
C6: =IF(Paramètres!C9="","",Paramètres!C9) -> Anglais | D6: =IFERROR(INDEX(tblNotesCours[],MATCH($C6:$C30&D$5:AB$5,Calculs!$C$33:$C$657,0),4),"") -> 80% | E6: 90% | F6: 80% | AC6: =IFERROR(AVERAGEIFS(tblNotesCours[Note],tblNotesCours[Cours],Calculs!$C6,tblNotesCours[Type],Calculs!AC$5)*Paramètres!E9,"") -> 0.08333333333 | AD6: =IFERROR(AVERAGEIFS(tblNotesCours[Note],tblNotesCours[Cours],Calculs!$C6,tblNotesCours[Type],Calculs!AD$5)*Paramètres!F9,"") ->  | AE6: =IFERROR(AVERAGEIFS(tblNotesCours[Note],tblNotesCours[Cours],Calculs!$C6,tblNotesCours[Type],Calculs!AE$5)*Paramètres!G9,"") ->  | AF6: =IFERROR(AVERAGEIFS(tblNotesCours[Note],tblNotesCours[Cours],Calculs!$C6,tblNotesCours[Type],Calculs!AF$5)*Paramètres!H9,"") ->  | AG6: =IFERROR(AVERAGEIFS(tblNotesCours[Note],tblNotesCours[Cours],Calculs!$C6,tblNotesCours[Type],Calculs!AG$5)*Paramètres!I9,"") ->  | AH6: =IFERROR(AVERAGEIFS(tblNotesCours[Note],tblNotesCours[Cours],Calculs!$C6,tblNotesCours[Type],Calculs!AH$5)*Paramètres!J9,"") ->  | AI6: =IFERROR(AVERAGEIFS(tblNotesCours[Note],tblNotesCours[Cours],Calculs!$C6,tblNotesCours[Type],Calculs!AI$5)*Paramètres!K9,"") ->  | AJ6: =SUM(AC6:AI6) -> 0.08333333333 | AK6: =SUMIFS(Paramètres!E9:K9,Calculs!AC6:AI6,">0") -> 0.1 | AL6: =IFERROR(AJ6/AK6,"") -> 83% | AM6: =IFERROR(HLOOKUP(AL6,_1erTableauCorrespondanceMoyenne,3),"") -> 3 | AN6: =IFERROR(HLOOKUP(AL6,_1erTableauCorrespondanceMoyenne,2),"") -> B
C7: =IF(Paramètres!C10="","",Paramètres!C10) -> Physique théorique | D7: 95% | AC7: =IFERROR(AVERAGEIFS(tblNotesCours[Note],tblNotesCours[Cours],Calculs!$C7,tblNotesCours[Type],Calculs!AC$5)*Paramètres!E10,"") -> 0.1425 | AD7: =IFERROR(AVERAGEIFS(tblNotesCours[Note],tblNotesCours[Cours],Calculs!$C7,tblNotesCours[Type],Calculs!AD$5)*Paramètres!F10,"") ->  | AE7: =IFERROR(AVERAGEIFS(tblNotesCours[Note],tblNotesCours[Cours],Calculs!$C7,tblNotesCours[Type],Calculs!AE$5)*Paramètres!G10,"") ->  | AF7: =IFERROR(AVERAGEIFS(tblNotesCours[Note],tblNotesCours[Cours],Calculs!$C7,tblNotesCours[Type],Calculs!AF$5)*Paramètres!H10,"") ->  | AG7: =IFERROR(AVERAGEIFS(tblNotesCours[Note],tblNotesCours[Cours],Calculs!$C7,tblNotesCours[Type],Calculs!AG$5)*Paramètres!I10,"") ->  | AH7: =IFERROR(AVERAGEIFS(tblNotesCours[Note],tblNotesCours[Cours],Calculs!$C7,tblNotesCours[Type],Calculs!AH$5)*Paramètres!J10,"") ->  | AI7: =IFERROR(AVERAGEIFS(tblNotesCours[Note],tblNotesCours[Cours],Calculs!$C7,tblNotesCours[Type],Calculs!AI$5)*Paramètres!K10,"") ->  | AJ7: =SUM(AC7:AI7) -> 0.1425 | AK7: =SUMIFS(Paramètres!E10:K10,Calculs!AC7:AI7,">0") -> 0.15 | AL7: =IFERROR(AJ7/AK7,"") -> 95% | AM7: 4 | AN7: A
C8: =IF(Paramètres!C11="","",Paramètres!C11) -> Mathématiques 1 | D8: 80% | E8: 80% | AC8: =IFERROR(AVERAGEIFS(tblNotesCours[Note],tblNotesCours[Cours],Calculs!$C8,tblNotesCours[Type],Calculs!AC$5)*Paramètres!E11,"") -> 0.08 | AD8: =IFERROR(AVERAGEIFS(tblNotesCours[Note],tblNotesCours[Cours],Calculs!$C8,tblNotesCours[Type],Calculs!AD$5)*Paramètres!F11,"") ->  | AE8: =IFERROR(AVERAGEIFS(tblNotesCours[Note],tblNotesCours[Cours],Calculs!$C8,tblNotesCours[Type],Calculs!AE$5)*Paramètres!G11,"") ->  | AF8: =IFERROR(AVERAGEIFS(tblNotesCours[Note],tblNotesCours[Cours],Calculs!$C8,tblNotesCours[Type],Calculs!AF$5)*Paramètres!H11,"") ->  | AG8: =IFERROR(AVERAGEIFS(tblNotesCours[Note],tblNotesCours[Cours],Calculs!$C8,tblNotesCours[Type],Calculs!AG$5)*Paramètres!I11,"") ->  | AH8: =IFERROR(AVERAGEIFS(tblNotesCours[Note],tblNotesCours[Cours],Calculs!$C8,tblNotesCours[Type],Calculs!AH$5)*Paramètres!J11,"") ->  | AI8: =IFERROR(AVERAGEIFS(tblNotesCours[Note],tblNotesCours[Cours],Calculs!$C8,tblNotesCours[Type],Calculs!AI$5)*Paramètres!K11,"") ->  | AJ8: 0.08 | AK8: =SUMIFS(Paramètres!E11:K11,Calculs!AC8:AI8,">0") -> 0.1 | AL8: 80% | AM8: 2.67 | AN8: B-
C9: =IF(Paramètres!C12="","",Paramètres!C12) -> Mathématiques 2 | D9: 85% | E9: 95% | AC9: =IFERROR(AVERAGEIFS(tblNotesCours[Note],tblNotesCours[Cours],Calculs!$C9,tblNotesCours[Type],Calculs!AC$5)*Paramètres!E12,"") -> 0.1275 | AD9: =IFERROR(AVERAGEIFS(tblNotesCours[Note],tblNotesCours[Cours],Calculs!$C9,tblNotesCours[Type],Calculs!AD$5)*Paramètres!F12,"") ->  | AE9: =IFERROR(AVERAGEIFS(tblNotesCours[Note],tblNotesCours[Cours],Calculs!$C9,tblNotesCours[Type],Calculs!AE$5)*Paramètres!G12,"") -> 0.095 | AF9: =IFERROR(AVERAGEIFS(tblNotesCours[Note],tblNotesCours[Cours],Calculs!$C9,tblNotesCours[Type],Calculs!AF$5)*Paramètres!H12,"") ->  | AG9: =IFERROR(AVERAGEIFS(tblNotesCours[Note],tblNotesCours[Cours],Calculs!$C9,tblNotesCours[Type],Calculs!AG$5)*Paramètres!I12,"") ->  | AH9: =IFERROR(AVERAGEIFS(tblNotesCours[Note],tblNotesCours[Cours],Calculs!$C9,tblNotesCours[Type],Calculs!AH$5)*Paramètres!J12,"") ->  | AI9: =IFERROR(AVERAGEIFS(tblNotesCours[Note],tblNotesCours[Cours],Calculs!$C9,tblNotesCours[Type],Calculs!AI$5)*Paramètres!K12,"") ->  | AJ9: 0.2225 | AK9: =SUMIFS(Paramètres!E12:K12,Calculs!AC9:AI9,">0") -> 0.25 | AL9: 89% | AM9: 3.33 | AN9: B+
C10: =IF(Paramètres!C13="","",Paramètres!C13) -> Programmation avancée en Java | D10: 75% | AC10: =IFERROR(AVERAGEIFS(tblNotesCours[Note],tblNotesCours[Cours],Calculs!$C10,tblNotesCours[Type],Calculs!AC$5)*Paramètres!E13,"") ->  | AD10: =IFERROR(AVERAGEIFS(tblNotesCours[Note],tblNotesCours[Cours],Calculs!$C10,tblNotesCours[Type],Calculs!AD$5)*Paramètres!F13,"") ->  | AE10: =IFERROR(AVERAGEIFS(tblNotesCours[Note],tblNotesCours[Cours],Calculs!$C10,tblNotesCours[Type],Calculs!AE$5)*Paramètres!G13,"") ->  | AF10: =IFERROR(AVERAGEIFS(tblNotesCours[Note],tblNotesCours[Cours],Calculs!$C10,tblNotesCours[Type],Calculs!AF$5)*Paramètres!H13,"") ->  | AG10: =IFERROR(AVERAGEIFS(tblNotesCours[Note],tblNotesCours[Cours],Calculs!$C10,tblNotesCours[Type],Calculs!AG$5)*Paramètres!I13,"") -> 0.15 | AH10: =IFERROR(AVERAGEIFS(tblNotesCours[Note],tblNotesCours[Cours],Calculs!$C10,tblNotesCours[Type],Calculs!AH$5)*Paramètres!J13,"") ->  | AI10: =IFERROR(AVERAGEIFS(tblNotesCours[Note],tblNotesCours[Cours],Calculs!$C10,tblNotesCours[Type],Calculs!AI$5)*Paramètres!K13,"") ->  | AJ10: 0.15 | AK10: =SUMIFS(Paramètres!E13:K13,Calculs!AC10:AI10,">0") -> 0.2 | AL10: 75% | AM10: 2 | AN10: C
C11: =IF(Paramètres!C14="","",Paramètres!C14) -> Espagnol | D11: 50% | AC11: =IFERROR(AVERAGEIFS(tblNotesCours[Note],tblNotesCours[Cours],Calculs!$C11,tblNotesCours[Type],Calculs!AC$5)*Paramètres!E14,"") -> 0.05 | AD11: =IFERROR(AVERAGEIFS(tblNotesCours[Note],tblNotesCours[Cours],Calculs!$C11,tblNotesCours[Type],Calculs!AD$5)*Paramètres!F14,"") ->  | AE11: =IFERROR(AVERAGEIFS(tblNotesCours[Note],tblNotesCours[Cours],Calculs!$C11,tblNotesCours[Type],Calculs!AE$5)*Paramètres!G14,"") ->  | AF11: =IFERROR(AVERAGEIFS(tblNotesCours[Note],tblNotesCours[Cours],Calculs!$C11,tblNotesCours[Type],Calculs!AF$5)*Paramètres!H14,"") ->  | AG11: =IFERROR(AVERAGEIFS(tblNotesCours[Note],tblNotesCours[Cours],Calculs!$C11,tblNotesCours[Type],Calculs!AG$5)*Paramètres!I14,"") ->  | AH11: =IFERROR(AVERAGEIFS(tblNotesCours[Note],tblNotesCours[Cours],Calculs!$C11,tblNotesCours[Type],Calculs!AH$5)*Paramètres!J14,"") ->  | AI11: =IFERROR(AVERAGEIFS(tblNotesCours[Note],tblNotesCours[Cours],Calculs!$C11,tblNotesCours[Type],Calculs!AI$5)*Paramètres!K14,"") ->  | AJ11: 0.05 | AK11: =SUMIFS(Paramètres!E14:K14,Calculs!AC11:AI11,">0") -> 0.1 | AL11: 50% | AM11: 0 | AN11: F
C12: =IF(Paramètres!C15="","",Paramètres!C15) -> Composition | D12: 95% | AC12: =IFERROR(AVERAGEIFS(tblNotesCours[Note],tblNotesCours[Cours],Calculs!$C12,tblNotesCours[Type],Calculs!AC$5)*Paramètres!E15,"") ->  | AD12: =IFERROR(AVERAGEIFS(tblNotesCours[Note],tblNotesCours[Cours],Calculs!$C12,tblNotesCours[Type],Calculs!AD$5)*Paramètres!F15,"") -> 0.1425 | AE12: =IFERROR(AVERAGEIFS(tblNotesCours[Note],tblNotesCours[Cours],Calculs!$C12,tblNotesCours[Type],Calculs!AE$5)*Paramètres!G15,"") ->  | AF12: =IFERROR(AVERAGEIFS(tblNotesCours[Note],tblNotesCours[Cours],Calculs!$C12,tblNotesCours[Type],Calculs!AF$5)*Paramètres!H15,"") ->  | AG12: =IFERROR(AVERAGEIFS(tblNotesCours[Note],tblNotesCours[Cours],Calculs!$C12,tblNotesCours[Type],Calculs!AG$5)*Paramètres!I15,"") ->  | AH12: =IFERROR(AVERAGEIFS(tblNotesCours[Note],tblNotesCours[Cours],Calculs!$C12,tblNotesCours[Type],Calculs!AH$5)*Paramètres!J15,"") ->  | AI12: =IFERROR(AVERAGEIFS(tblNotesCours[Note],tblNotesCours[Cours],Calculs!$C12,tblNotesCours[Type],Calculs!AI$5)*Paramètres!K15,"") ->  | AJ12: 0.1425 | AK12: =SUMIFS(Paramètres!E15:K15,Calculs!AC12:AI12,">0") -> 0.15 | AL12: 95% | AM12: 4 | AN12: A
C13: =IF(Paramètres!C16="","",Paramètres!C16) ->  | AC13: =IFERROR(AVERAGEIFS(tblNotesCours[Note],tblNotesCours[Cours],Calculs!$C13,tblNotesCours[Type],Calculs!AC$5)*Paramètres!E16,"") ->  | AD13: =IFERROR(AVERAGEIFS(tblNotesCours[Note],tblNotesCours[Cours],Calculs!$C13,tblNotesCours[Type],Calculs!AD$5)*Paramètres!F16,"") ->  | AE13: =IFERROR(AVERAGEIFS(tblNotesCours[Note],tblNotesCours[Cours],Calculs!$C13,tblNotesCours[Type],Calculs!AE$5)*Paramètres!G16,"") ->  | AF13: =IFERROR(AVERAGEIFS(tblNotesCours[Note],tblNotesCours[Cours],Calculs!$C13,tblNotesCours[Type],Calculs!AF$5)*Paramètres!H16,"") ->  | AG13: =IFERROR(AVERAGEIFS(tblNotesCours[Note],tblNotesCours[Cours],Calculs!$C13,tblNotesCours[Type],Calculs!AG$5)*Paramètres!I16,"") ->  | AH13: =IFERROR(AVERAGEIFS(tblNotesCours[Note],tblNotesCours[Cours],Calculs!$C13,tblNotesCours[Type],Calculs!AH$5)*Paramètres!J16,"") ->  | AI13: =IFERROR(AVERAGEIFS(tblNotesCours[Note],tblNotesCours[Cours],Calculs!$C13,tblNotesCours[Type],Calculs!AI$5)*Paramètres!K16,"") ->  | AJ13: 0 | AK13: =SUMIFS(Paramètres!E16:K16,Calculs!AC13:AI13,">0") -> 0
C14: =IF(Paramètres!C17="","",Paramètres!C17) ->  | AC14: =IFERROR(AVERAGEIFS(tblNotesCours[Note],tblNotesCours[Cours],Calculs!$C14,tblNotesCours[Type],Calculs!AC$5)*Paramètres!E17,"") ->  | AD14: =IFERROR(AVERAGEIFS(tblNotesCours[Note],tblNotesCours[Cours],Calculs!$C14,tblNotesCours[Type],Calculs!AD$5)*Paramètres!F17,"") ->  | AE14: =IFERROR(AVERAGEIFS(tblNotesCours[Note],tblNotesCours[Cours],Calculs!$C14,tblNotesCours[Type],Calculs!AE$5)*Paramètres!G17,"") ->  | AF14: =IFERROR(AVERAGEIFS(tblNotesCours[Note],tblNotesCours[Cours],Calculs!$C14,tblNotesCours[Type],Calculs!AF$5)*Paramètres!H17,"") ->  | AG14: =IFERROR(AVERAGEIFS(tblNotesCours[Note],tblNotesCours[Cours],Calculs!$C14,tblNotesCours[Type],Calculs!AG$5)*Paramètres!I17,"") ->  | AH14: =IFERROR(AVERAGEIFS(tblNotesCours[Note],tblNotesCours[Cours],Calculs!$C14,tblNotesCours[Type],Calculs!AH$5)*Paramètres!J17,"") ->  | AI14: =IFERROR(AVERAGEIFS(tblNotesCours[Note],tblNotesCours[Cours],Calculs!$C14,tblNotesCours[Type],Calculs!AI$5)*Paramètres!K17,"") ->  | AJ14: 0 | AK14: =SUMIFS(Paramètres!E17:K17,Calculs!AC14:AI14,">0") -> 0
C15: =IF(Paramètres!C18="","",Paramètres!C18) ->  | AC15: =IFERROR(AVERAGEIFS(tblNotesCours[Note],tblNotesCours[Cours],Calculs!$C15,tblNotesCours[Type],Calculs!AC$5)*Paramètres!E18,"") ->  | AD15: =IFERROR(AVERAGEIFS(tblNotesCours[Note],tblNotesCours[Cours],Calculs!$C15,tblNotesCours[Type],Calculs!AD$5)*Paramètres!F18,"") ->  | AE15: =IFERROR(AVERAGEIFS(tblNotesCours[Note],tblNotesCours[Cours],Calculs!$C15,tblNotesCours[Type],Calculs!AE$5)*Paramètres!G18,"") ->  | AF15: =IFERROR(AVERAGEIFS(tblNotesCours[Note],tblNotesCours[Cours],Calculs!$C15,tblNotesCours[Type],Calculs!AF$5)*Paramètres!H18,"") ->  | AG15: =IFERROR(AVERAGEIFS(tblNotesCours[Note],tblNotesCours[Cours],Calculs!$C15,tblNotesCours[Type],Calculs!AG$5)*Paramètres!I18,"") ->  | AH15: =IFERROR(AVERAGEIFS(tblNotesCours[Note],tblNotesCours[Cours],Calculs!$C15,tblNotesCours[Type],Calculs!AH$5)*Paramètres!J18,"") ->  | AI15: =IFERROR(AVERAGEIFS(tblNotesCours[Note],tblNotesCours[Cours],Calculs!$C15,tblNotesCours[Type],Calculs!AI$5)*Paramètres!K18,"") ->  | AJ15: 0 | AK15: =SUMIFS(Paramètres!E18:K18,Calculs!AC15:AI15,">0") -> 0
C16: =IF(Paramètres!C19="","",Paramètres!C19) ->  | AC16: =IFERROR(AVERAGEIFS(tblNotesCours[Note],tblNotesCours[Cours],Calculs!$C16,tblNotesCours[Type],Calculs!AC$5)*Paramètres!E19,"") ->  | AD16: =IFERROR(AVERAGEIFS(tblNotesCours[Note],tblNotesCours[Cours],Calculs!$C16,tblNotesCours[Type],Calculs!AD$5)*Paramètres!F19,"") ->  | AE16: =IFERROR(AVERAGEIFS(tblNotesCours[Note],tblNotesCours[Cours],Calculs!$C16,tblNotesCours[Type],Calculs!AE$5)*Paramètres!G19,"") ->  | AF16: =IFERROR(AVERAGEIFS(tblNotesCours[Note],tblNotesCours[Cours],Calculs!$C16,tblNotesCours[Type],Calculs!AF$5)*Paramètres!H19,"") ->  | AG16: =IFERROR(AVERAGEIFS(tblNotesCours[Note],tblNotesCours[Cours],Calculs!$C16,tblNotesCours[Type],Calculs!AG$5)*Paramètres!I19,"") ->  | AH16: =IFERROR(AVERAGEIFS(tblNotesCours[Note],tblNotesCours[Cours],Calculs!$C16,tblNotesCours[Type],Calculs!AH$5)*Paramètres!J19,"") ->  | AI16: =IFERROR(AVERAGEIFS(tblNotesCours[Note],tblNotesCours[Cours],Calculs!$C16,tblNotesCours[Type],Calculs!AI$5)*Paramètres!K19,"") ->  | AJ16: 0 | AK16: =SUMIFS(Paramètres!E19:K19,Calculs!AC16:AI16,">0") -> 0
C17: =IF(Paramètres!C20="","",Paramètres!C20) ->  | AC17: =IFERROR(AVERAGEIFS(tblNotesCours[Note],tblNotesCours[Cours],Calculs!$C17,tblNotesCours[Type],Calculs!AC$5)*Paramètres!E20,"") ->  | AD17: =IFERROR(AVERAGEIFS(tblNotesCours[Note],tblNotesCours[Cours],Calculs!$C17,tblNotesCours[Type],Calculs!AD$5)*Paramètres!F20,"") ->  | AE17: =IFERROR(AVERAGEIFS(tblNotesCours[Note],tblNotesCours[Cours],Calculs!$C17,tblNotesCours[Type],Calculs!AE$5)*Paramètres!G20,"") ->  | AF17: =IFERROR(AVERAGEIFS(tblNotesCours[Note],tblNotesCours[Cours],Calculs!$C17,tblNotesCours[Type],Calculs!AF$5)*Paramètres!H20,"") ->  | AG17: =IFERROR(AVERAGEIFS(tblNotesCours[Note],tblNotesCours[Cours],Calculs!$C17,tblNotesCours[Type],Calculs!AG$5)*Paramètres!I20,"") ->  | AH17: =IFERROR(AVERAGEIFS(tblNotesCours[Note],tblNotesCours[Cours],Calculs!$C17,tblNotesCours[Type],Calculs!AH$5)*Paramètres!J20,"") ->  | AI17: =IFERROR(AVERAGEIFS(tblNotesCours[Note],tblNotesCours[Cours],Calculs!$C17,tblNotesCours[Type],Calculs!AI$5)*Paramètres!K20,"") ->  | AJ17: 0 | AK17: =SUMIFS(Paramètres!E20:K20,Calculs!AC17:AI17,">0") -> 0
C18: =IF(Paramètres!C21="","",Paramètres!C21) ->  | AC18: =IFERROR(AVERAGEIFS(tblNotesCours[Note],tblNotesCours[Cours],Calculs!$C18,tblNotesCours[Type],Calculs!AC$5)*Paramètres!E21,"") ->  | AD18: =IFERROR(AVERAGEIFS(tblNotesCours[Note],tblNotesCours[Cours],Calculs!$C18,tblNotesCours[Type],Calculs!AD$5)*Paramètres!F21,"") ->  | AE18: =IFERROR(AVERAGEIFS(tblNotesCours[Note],tblNotesCours[Cours],Calculs!$C18,tblNotesCours[Type],Calculs!AE$5)*Paramètres!G21,"") ->  | AF18: =IFERROR(AVERAGEIFS(tblNotesCours[Note],tblNotesCours[Cours],Calculs!$C18,tblNotesCours[Type],Calculs!AF$5)*Paramètres!H21,"") ->  | AG18: =IFERROR(AVERAGEIFS(tblNotesCours[Note],tblNotesCours[Cours],Calculs!$C18,tblNotesCours[Type],Calculs!AG$5)*Paramètres!I21,"") ->  | AH18: =IFERROR(AVERAGEIFS(tblNotesCours[Note],tblNotesCours[Cours],Calculs!$C18,tblNotesCours[Type],Calculs!AH$5)*Paramètres!J21,"") ->  | AI18: =IFERROR(AVERAGEIFS(tblNotesCours[Note],tblNotesCours[Cours],Calculs!$C18,tblNotesCours[Type],Calculs!AI$5)*Paramètres!K21,"") ->  | AJ18: 0 | AK18: =SUMIFS(Paramètres!E21:K21,Calculs!AC18:AI18,">0") -> 0
C19: =IF(Paramètres!C22="","",Paramètres!C22) ->  | AC19: =IFERROR(AVERAGEIFS(tblNotesCours[Note],tblNotesCours[Cours],Calculs!$C19,tblNotesCours[Type],Calculs!AC$5)*Paramètres!E22,"") ->  | AD19: =IFERROR(AVERAGEIFS(tblNotesCours[Note],tblNotesCours[Cours],Calculs!$C19,tblNotesCours[Type],Calculs!AD$5)*Paramètres!F22,"") ->  | AE19: =IFERROR(AVERAGEIFS(tblNotesCours[Note],tblNotesCours[Cours],Calculs!$C19,tblNotesCours[Type],Calculs!AE$5)*Paramètres!G22,"") ->  | AF19: =IFERROR(AVERAGEIFS(tblNotesCours[Note],tblNotesCours[Cours],Calculs!$C19,tblNotesCours[Type],Calculs!AF$5)*Paramètres!H22,"") ->  | AG19: =IFERROR(AVERAGEIFS(tblNotesCours[Note],tblNotesCours[Cours],Calculs!$C19,tblNotesCours[Type],Calculs!AG$5)*Paramètres!I22,"") ->  | AH19: =IFERROR(AVERAGEIFS(tblNotesCours[Note],tblNotesCours[Cours],Calculs!$C19,tblNotesCours[Type],Calculs!AH$5)*Paramètres!J22,"") ->  | AI19: =IFERROR(AVERAGEIFS(tblNotesCours[Note],tblNotesCours[Cours],Calculs!$C19,tblNotesCours[Type],Calculs!AI$5)*Paramètres!K22,"") ->  | AJ19: 0 | AK19: =SUMIFS(Paramètres!E22:K22,Calculs!AC19:AI19,">0") -> 0
C20: =IF(Paramètres!C23="","",Paramètres!C23) ->  | AC20: =IFERROR(AVERAGEIFS(tblNotesCours[Note],tblNotesCours[Cours],Calculs!$C20,tblNotesCours[Type],Calculs!AC$5)*Paramètres!E23,"") ->  | AD20: =IFERROR(AVERAGEIFS(tblNotesCours[Note],tblNotesCours[Cours],Calculs!$C20,tblNotesCours[Type],Calculs!AD$5)*Paramètres!F23,"") ->  | AE20: =IFERROR(AVERAGEIFS(tblNotesCours[Note],tblNotesCours[Cours],Calculs!$C20,tblNotesCours[Type],Calculs!AE$5)*Paramètres!G23,"") ->  | AF20: =IFERROR(AVERAGEIFS(tblNotesCours[Note],tblNotesCours[Cours],Calculs!$C20,tblNotesCours[Type],Calculs!AF$5)*Paramètres!H23,"") ->  | AG20: =IFERROR(AVERAGEIFS(tblNotesCours[Note],tblNotesCours[Cours],Calculs!$C20,tblNotesCours[Type],Calculs!AG$5)*Paramètres!I23,"") ->  | AH20: =IFERROR(AVERAGEIFS(tblNotesCours[Note],tblNotesCours[Cours],Calculs!$C20,tblNotesCours[Type],Calculs!AH$5)*Paramètres!J23,"") ->  | AI20: =IFERROR(AVERAGEIFS(tblNotesCours[Note],tblNotesCours[Cours],Calculs!$C20,tblNotesCours[Type],Calculs!AI$5)*Paramètres!K23,"") ->  | AJ20: 0 | AK20: =SUMIFS(Paramètres!E23:K23,Calculs!AC20:AI20,">0") -> 0
C21: =IF(Paramètres!C24="","",Paramètres!C24) ->  | AC21: =IFERROR(AVERAGEIFS(tblNotesCours[Note],tblNotesCours[Cours],Calculs!$C21,tblNotesCours[Type],Calculs!AC$5)*Paramètres!E24,"") ->  | AD21: =IFERROR(AVERAGEIFS(tblNotesCours[Note],tblNotesCours[Cours],Calculs!$C21,tblNotesCours[Type],Calculs!AD$5)*Paramètres!F24,"") ->  | AE21: =IFERROR(AVERAGEIFS(tblNotesCours[Note],tblNotesCours[Cours],Calculs!$C21,tblNotesCours[Type],Calculs!AE$5)*Paramètres!G24,"") ->  | AF21: =IFERROR(AVERAGEIFS(tblNotesCours[Note],tblNotesCours[Cours],Calculs!$C21,tblNotesCours[Type],Calculs!AF$5)*Paramètres!H24,"") ->  | AG21: =IFERROR(AVERAGEIFS(tblNotesCours[Note],tblNotesCours[Cours],Calculs!$C21,tblNotesCours[Type],Calculs!AG$5)*Paramètres!I24,"") ->  | AH21: =IFERROR(AVERAGEIFS(tblNotesCours[Note],tblNotesCours[Cours],Calculs!$C21,tblNotesCours[Type],Calculs!AH$5)*Paramètres!J24,"") ->  | AI21: =IFERROR(AVERAGEIFS(tblNotesCours[Note],tblNotesCours[Cours],Calculs!$C21,tblNotesCours[Type],Calculs!AI$5)*Paramètres!K24,"") ->  | AJ21: 0 | AK21: =SUMIFS(Paramètres!E24:K24,Calculs!AC21:AI21,">0") -> 0
C22: =IF(Paramètres!C25="","",Paramètres!C25) ->  | AC22: =IFERROR(AVERAGEIFS(tblNotesCours[Note],tblNotesCours[Cours],Calculs!$C22,tblNotesCours[Type],Calculs!AC$5)*Paramètres!E25,"") ->  | AD22: =IFERROR(AVERAGEIFS(tblNotesCours[Note],tblNotesCours[Cours],Calculs!$C22,tblNotesCours[Type],Calculs!AD$5)*Paramètres!F25,"") ->  | AE22: =IFERROR(AVERAGEIFS(tblNotesCours[Note],tblNotesCours[Cours],Calculs!$C22,tblNotesCours[Type],Calculs!AE$5)*Paramètres!G25,"") ->  | AF22: =IFERROR(AVERAGEIFS(tblNotesCours[Note],tblNotesCours[Cours],Calculs!$C22,tblNotesCours[Type],Calculs!AF$5)*Paramètres!H25,"") ->  | AG22: =IFERROR(AVERAGEIFS(tblNotesCours[Note],tblNotesCours[Cours],Calculs!$C22,tblNotesCours[Type],Calculs!AG$5)*Paramètres!I25,"") ->  | AH22: =IFERROR(AVERAGEIFS(tblNotesCours[Note],tblNotesCours[Cours],Calculs!$C22,tblNotesCours[Type],Calculs!AH$5)*Paramètres!J25,"") ->  | AI22: =IFERROR(AVERAGEIFS(tblNotesCours[Note],tblNotesCours[Cours],Calculs!$C22,tblNotesCours[Type],Calculs!AI$5)*Paramètres!K25,"") ->  | AJ22: 0 | AK22: =SUMIFS(Paramètres!E25:K25,Calculs!AC22:AI22,">0") -> 0
C23: =IF(Paramètres!C26="","",Paramètres!C26) ->  | AC23: =IFERROR(AVERAGEIFS(tblNotesCours[Note],tblNotesCours[Cours],Calculs!$C23,tblNotesCours[Type],Calculs!AC$5)*Paramètres!E26,"") ->  | AD23: =IFERROR(AVERAGEIFS(tblNotesCours[Note],tblNotesCours[Cours],Calculs!$C23,tblNotesCours[Type],Calculs!AD$5)*Paramètres!F26,"") ->  | AE23: =IFERROR(AVERAGEIFS(tblNotesCours[Note],tblNotesCours[Cours],Calculs!$C23,tblNotesCours[Type],Calculs!AE$5)*Paramètres!G26,"") ->  | AF23: =IFERROR(AVERAGEIFS(tblNotesCours[Note],tblNotesCours[Cours],Calculs!$C23,tblNotesCours[Type],Calculs!AF$5)*Paramètres!H26,"") ->  | AG23: =IFERROR(AVERAGEIFS(tblNotesCours[Note],tblNotesCours[Cours],Calculs!$C23,tblNotesCours[Type],Calculs!AG$5)*Paramètres!I26,"") ->  | AH23: =IFERROR(AVERAGEIFS(tblNotesCours[Note],tblNotesCours[Cours],Calculs!$C23,tblNotesCours[Type],Calculs!AH$5)*Paramètres!J26,"") ->  | AI23: =IFERROR(AVERAGEIFS(tblNotesCours[Note],tblNotesCours[Cours],Calculs!$C23,tblNotesCours[Type],Calculs!AI$5)*Paramètres!K26,"") ->  | AJ23: 0 | AK23: =SUMIFS(Paramètres!E26:K26,Calculs!AC23:AI23,">0") -> 0
C24: =IF(Paramètres!C27="","",Paramètres!C27) ->  | AC24: =IFERROR(AVERAGEIFS(tblNotesCours[Note],tblNotesCours[Cours],Calculs!$C24,tblNotesCours[Type],Calculs!AC$5)*Paramètres!E27,"") ->  | AD24: =IFERROR(AVERAGEIFS(tblNotesCours[Note],tblNotesCours[Cours],Calculs!$C24,tblNotesCours[Type],Calculs!AD$5)*Paramètres!F27,"") ->  | AE24: =IFERROR(AVERAGEIFS(tblNotesCours[Note],tblNotesCours[Cours],Calculs!$C24,tblNotesCours[Type],Calculs!AE$5)*Paramètres!G27,"") ->  | AF24: =IFERROR(AVERAGEIFS(tblNotesCours[Note],tblNotesCours[Cours],Calculs!$C24,tblNotesCours[Type],Calculs!AF$5)*Paramètres!H27,"") ->  | AG24: =IFERROR(AVERAGEIFS(tblNotesCours[Note],tblNotesCours[Cours],Calculs!$C24,tblNotesCours[Type],Calculs!AG$5)*Paramètres!I27,"") ->  | AH24: =IFERROR(AVERAGEIFS(tblNotesCours[Note],tblNotesCours[Cours],Calculs!$C24,tblNotesCours[Type],Calculs!AH$5)*Paramètres!J27,"") ->  | AI24: =IFERROR(AVERAGEIFS(tblNotesCours[Note],tblNotesCours[Cours],Calculs!$C24,tblNotesCours[Type],Calculs!AI$5)*Paramètres!K27,"") ->  | AJ24: 0 | AK24: =SUMIFS(Paramètres!E27:K27,Calculs!AC24:AI24,">0") -> 0
C25: =IF(Paramètres!C28="","",Paramètres!C28) ->  | AC25: =IFERROR(AVERAGEIFS(tblNotesCours[Note],tblNotesCours[Cours],Calculs!$C25,tblNotesCours[Type],Calculs!AC$5)*Paramètres!E28,"") ->  | AD25: =IFERROR(AVERAGEIFS(tblNotesCours[Note],tblNotesCours[Cours],Calculs!$C25,tblNotesCours[Type],Calculs!AD$5)*Paramètres!F28,"") ->  | AE25: =IFERROR(AVERAGEIFS(tblNotesCours[Note],tblNotesCours[Cours],Calculs!$C25,tblNotesCours[Type],Calculs!AE$5)*Paramètres!G28,"") ->  | AF25: =IFERROR(AVERAGEIFS(tblNotesCours[Note],tblNotesCours[Cours],Calculs!$C25,tblNotesCours[Type],Calculs!AF$5)*Paramètres!H28,"") ->  | AG25: =IFERROR(AVERAGEIFS(tblNotesCours[Note],tblNotesCours[Cours],Calculs!$C25,tblNotesCours[Type],Calculs!AG$5)*Paramètres!I28,"") ->  | AH25: =IFERROR(AVERAGEIFS(tblNotesCours[Note],tblNotesCours[Cours],Calculs!$C25,tblNotesCours[Type],Calculs!AH$5)*Paramètres!J28,"") ->  | AI25: =IFERROR(AVERAGEIFS(tblNotesCours[Note],tblNotesCours[Cours],Calculs!$C25,tblNotesCours[Type],Calculs!AI$5)*Paramètres!K28,"") ->  | AJ25: 0 | AK25: =SUMIFS(Paramètres!E28:K28,Calculs!AC25:AI25,">0") -> 0
C26: =IF(Paramètres!C29="","",Paramètres!C29) ->  | AC26: =IFERROR(AVERAGEIFS(tblNotesCours[Note],tblNotesCours[Cours],Calculs!$C26,tblNotesCours[Type],Calculs!AC$5)*Paramètres!E29,"") ->  | AD26: =IFERROR(AVERAGEIFS(tblNotesCours[Note],tblNotesCours[Cours],Calculs!$C26,tblNotesCours[Type],Calculs!AD$5)*Paramètres!F29,"") ->  | AE26: =IFERROR(AVERAGEIFS(tblNotesCours[Note],tblNotesCours[Cours],Calculs!$C26,tblNotesCours[Type],Calculs!AE$5)*Paramètres!G29,"") ->  | AF26: =IFERROR(AVERAGEIFS(tblNotesCours[Note],tblNotesCours[Cours],Calculs!$C26,tblNotesCours[Type],Calculs!AF$5)*Paramètres!H29,"") ->  | AG26: =IFERROR(AVERAGEIFS(tblNotesCours[Note],tblNotesCours[Cours],Calculs!$C26,tblNotesCours[Type],Calculs!AG$5)*Paramètres!I29,"") ->  | AH26: =IFERROR(AVERAGEIFS(tblNotesCours[Note],tblNotesCours[Cours],Calculs!$C26,tblNotesCours[Type],Calculs!AH$5)*Paramètres!J29,"") ->  | AI26: =IFERROR(AVERAGEIFS(tblNotesCours[Note],tblNotesCours[Cours],Calculs!$C26,tblNotesCours[Type],Calculs!AI$5)*Paramètres!K29,"") ->  | AJ26: 0 | AK26: =SUMIFS(Paramètres!E29:K29,Calculs!AC26:AI26,">0") -> 0
C27: =IF(Paramètres!C30="","",Paramètres!C30) ->  | AC27: =IFERROR(AVERAGEIFS(tblNotesCours[Note],tblNotesCours[Cours],Calculs!$C27,tblNotesCours[Type],Calculs!AC$5)*Paramètres!E30,"") ->  | AD27: =IFERROR(AVERAGEIFS(tblNotesCours[Note],tblNotesCours[Cours],Calculs!$C27,tblNotesCours[Type],Calculs!AD$5)*Paramètres!F30,"") ->  | AE27: =IFERROR(AVERAGEIFS(tblNotesCours[Note],tblNotesCours[Cours],Calculs!$C27,tblNotesCours[Type],Calculs!AE$5)*Paramètres!G30,"") ->  | AF27: =IFERROR(AVERAGEIFS(tblNotesCours[Note],tblNotesCours[Cours],Calculs!$C27,tblNotesCours[Type],Calculs!AF$5)*Paramètres!H30,"") ->  | AG27: =IFERROR(AVERAGEIFS(tblNotesCours[Note],tblNotesCours[Cours],Calculs!$C27,tblNotesCours[Type],Calculs!AG$5)*Paramètres!I30,"") ->  | AH27: =IFERROR(AVERAGEIFS(tblNotesCours[Note],tblNotesCours[Cours],Calculs!$C27,tblNotesCours[Type],Calculs!AH$5)*Paramètres!J30,"") ->  | AI27: =IFERROR(AVERAGEIFS(tblNotesCours[Note],tblNotesCours[Cours],Calculs!$C27,tblNotesCours[Type],Calculs!AI$5)*Paramètres!K30,"") ->  | AJ27: 0 | AK27: =SUMIFS(Paramètres!E30:K30,Calculs!AC27:AI27,">0") -> 0
C28: =IF(Paramètres!C31="","",Paramètres!C31) ->  | AC28: =IFERROR(AVERAGEIFS(tblNotesCours[Note],tblNotesCours[Cours],Calculs!$C28,tblNotesCours[Type],Calculs!AC$5)*Paramètres!E31,"") ->  | AD28: =IFERROR(AVERAGEIFS(tblNotesCours[Note],tblNotesCours[Cours],Calculs!$C28,tblNotesCours[Type],Calculs!AD$5)*Paramètres!F31,"") ->  | AE28: =IFERROR(AVERAGEIFS(tblNotesCours[Note],tblNotesCours[Cours],Calculs!$C28,tblNotesCours[Type],Calculs!AE$5)*Paramètres!G31,"") ->  | AF28: =IFERROR(AVERAGEIFS(tblNotesCours[Note],tblNotesCours[Cours],Calculs!$C28,tblNotesCours[Type],Calculs!AF$5)*Paramètres!H31,"") ->  | AG28: =IFERROR(AVERAGEIFS(tblNotesCours[Note],tblNotesCours[Cours],Calculs!$C28,tblNotesCours[Type],Calculs!AG$5)*Paramètres!I31,"") ->  | AH28: =IFERROR(AVERAGEIFS(tblNotesCours[Note],tblNotesCours[Cours],Calculs!$C28,tblNotesCours[Type],Calculs!AH$5)*Paramètres!J31,"") ->  | AI28: =IFERROR(AVERAGEIFS(tblNotesCours[Note],tblNotesCours[Cours],Calculs!$C28,tblNotesCours[Type],Calculs!AI$5)*Paramètres!K31,"") ->  | AJ28: 0 | AK28: =SUMIFS(Paramètres!E31:K31,Calculs!AC28:AI28,">0") -> 0
C29: =IF(Paramètres!C32="","",Paramètres!C32) ->  | AC29: =IFERROR(AVERAGEIFS(tblNotesCours[Note],tblNotesCours[Cours],Calculs!$C29,tblNotesCours[Type],Calculs!AC$5)*Paramètres!E32,"") ->  | AD29: =IFERROR(AVERAGEIFS(tblNotesCours[Note],tblNotesCours[Cours],Calculs!$C29,tblNotesCours[Type],Calculs!AD$5)*Paramètres!F32,"") ->  | AE29: =IFERROR(AVERAGEIFS(tblNotesCours[Note],tblNotesCours[Cours],Calculs!$C29,tblNotesCours[Type],Calculs!AE$5)*Paramètres!G32,"") ->  | AF29: =IFERROR(AVERAGEIFS(tblNotesCours[Note],tblNotesCours[Cours],Calculs!$C29,tblNotesCours[Type],Calculs!AF$5)*Paramètres!H32,"") ->  | AG29: =IFERROR(AVERAGEIFS(tblNotesCours[Note],tblNotesCours[Cours],Calculs!$C29,tblNotesCours[Type],Calculs!AG$5)*Paramètres!I32,"") ->  | AH29: =IFERROR(AVERAGEIFS(tblNotesCours[Note],tblNotesCours[Cours],Calculs!$C29,tblNotesCours[Type],Calculs!AH$5)*Paramètres!J32,"") ->  | AI29: =IFERROR(AVERAGEIFS(tblNotesCours[Note],tblNotesCours[Cours],Calculs!$C29,tblNotesCours[Type],Calculs!AI$5)*Paramètres!K32,"") ->  | AJ29: 0 | AK29: =SUMIFS(Paramètres!E32:K32,Calculs!AC29:AI29,">0") -> 0
C30: =IF(Paramètres!C33="","",Paramètres!C33) ->  | AC30: =IFERROR(AVERAGEIFS(tblNotesCours[Note],tblNotesCours[Cours],Calculs!$C30,tblNotesCours[Type],Calculs!AC$5)*Paramètres!E33,"") ->  | AD30: =IFERROR(AVERAGEIFS(tblNotesCours[Note],tblNotesCours[Cours],Calculs!$C30,tblNotesCours[Type],Calculs!AD$5)*Paramètres!F33,"") ->  | AE30: =IFERROR(AVERAGEIFS(tblNotesCours[Note],tblNotesCours[Cours],Calculs!$C30,tblNotesCours[Type],Calculs!AE$5)*Paramètres!G33,"") ->  | AF30: =IFERROR(AVERAGEIFS(tblNotesCours[Note],tblNotesCours[Cours],Calculs!$C30,tblNotesCours[Type],Calculs!AF$5)*Paramètres!H33,"") ->  | AG30: =IFERROR(AVERAGEIFS(tblNotesCours[Note],tblNotesCours[Cours],Calculs!$C30,tblNotesCours[Type],Calculs!AG$5)*Paramètres!I33,"") ->  | AH30: =IFERROR(AVERAGEIFS(tblNotesCours[Note],tblNotesCours[Cours],Calculs!$C30,tblNotesCours[Type],Calculs!AH$5)*Paramètres!J33,"") ->  | AI30: =IFERROR(AVERAGEIFS(tblNotesCours[Note],tblNotesCours[Cours],Calculs!$C30,tblNotesCours[Type],Calculs!AI$5)*Paramètres!K33,"") ->  | AJ30: 0 | AK30: =SUMIFS(Paramètres!E33:K33,Calculs!AC30:AI30,">0") -> 0
B33: 1 | C33: ='Suivi des notes'!C4&COUNTIF('Suivi des notes'!$C$4:C4,'Suivi des notes'!C4) -> Anglais1
B34: 2 | C34: ='Suivi des notes'!C5&COUNTIF('Suivi des notes'!$C$4:C5,'Suivi des notes'!C5) -> Programmation avancée en Java1
B35: 3 | C35: ='Suivi des notes'!C6&COUNTIF('Suivi des notes'!$C$4:C6,'Suivi des notes'!C6) -> Espagnol1
B36: 4 | C36: ='Suivi des notes'!C7&COUNTIF('Suivi des notes'!$C$4:C7,'Suivi des notes'!C7) -> Physique théorique1
B37: 5 | C37: ='Suivi des notes'!C8&COUNTIF('Suivi des notes'!$C$4:C8,'Suivi des notes'!C8) -> Anglais2
B38: 6 | C38: ='Suivi des notes'!C9&COUNTIF('Suivi des notes'!$C$4:C9,'Suivi des notes'!C9) -> Anglais3
B39: 7 | C39: ='Suivi des notes'!C10&COUNTIF('Suivi des notes'!$C$4:C10,'Suivi des notes'!C10) -> Composition1
B40: 8 | C40: ='Suivi des notes'!C11&COUNTIF('Suivi des notes'!$C$4:C11,'Suivi des notes'!C11) -> Mathématiques 11
B41: 9 | C41: ='Suivi des notes'!C12&COUNTIF('Suivi des notes'!$C$4:C12,'Suivi des notes'!C12) -> Mathématiques 21
B42: 10 | C42: ='Suivi des notes'!C13&COUNTIF('Suivi des notes'!$C$4:C14,'Suivi des notes'!C13) -> Mathématiques 12
B43: 11 | C43: ='Suivi des notes'!C14&COUNTIF('Suivi des notes'!$C$4:C14,'Suivi des notes'!C14) -> Mathématiques 22
B44: 12 | C44: ='Suivi des notes'!C15&COUNTIF('Suivi des notes'!$C$4:C15,'Suivi des notes'!C15) -> 0
B45: 13 | C45: ='Suivi des notes'!C16&COUNTIF('Suivi des notes'!$C$4:C16,'Suivi des notes'!C16) -> 0
B46: 14 | C46: ='Suivi des notes'!C17&COUNTIF('Suivi des notes'!$C$4:C17,'Suivi des notes'!C17) -> 0
B47: 15 | C47: ='Suivi des notes'!C18&COUNTIF('Suivi des notes'!$C$4:C18,'Suivi des notes'!C18) -> 0
B48: 16 | C48: ='Suivi des notes'!C19&COUNTIF('Suivi des notes'!$C$4:C19,'Suivi des notes'!C19) -> 0
B49: 17 | C49: ='Suivi des notes'!C20&COUNTIF('Suivi des notes'!$C$4:C20,'Suivi des notes'!C20) -> 0
B50: 18 | C50: ='Suivi des notes'!C21&COUNTIF('Suivi des notes'!$C$4:C21,'Suivi des notes'!C21) -> 0
B51: 19 | C51: ='Suivi des notes'!C22&COUNTIF('Suivi des notes'!$C$4:C22,'Suivi des notes'!C22) -> 0
B52: 20 | C52: ='Suivi des notes'!C23&COUNTIF('Suivi des notes'!$C$4:C23,'Suivi des notes'!C23) -> 0
B53: 21 | C53: ='Suivi des notes'!C24&COUNTIF('Suivi des notes'!$C$4:C24,'Suivi des notes'!C24) -> 0
B54: 22 | C54: ='Suivi des notes'!C25&COUNTIF('Suivi des notes'!$C$4:C25,'Suivi des notes'!C25) -> 0
B55: 23 | C55: ='Suivi des notes'!C26&COUNTIF('Suivi des notes'!$C$4:C26,'Suivi des notes'!C26) -> 0
B56: 24 | C56: ='Suivi des notes'!C27&COUNTIF('Suivi des notes'!$C$4:C27,'Suivi des notes'!C27) -> 0
B57: 25 | C57: ='Suivi des notes'!C28&COUNTIF('Suivi des notes'!$C$4:C28,'Suivi des notes'!C28) -> 0
B58: 26 | C58: ='Suivi des notes'!C29&COUNTIF('Suivi des notes'!$C$4:C29,'Suivi des notes'!C29) -> 0
B59: 27 | C59: ='Suivi des notes'!C30&COUNTIF('Suivi des notes'!$C$4:C30,'Suivi des notes'!C30) -> 0
B60: 28 | C60: ='Suivi des notes'!C31&COUNTIF('Suivi des notes'!$C$4:C31,'Suivi des notes'!C31) -> 0
B61: 29 | C61: ='Suivi des notes'!C32&COUNTIF('Suivi des notes'!$C$4:C32,'Suivi des notes'!C32) -> 0
B62: 30 | C62: ='Suivi des notes'!C33&COUNTIF('Suivi des notes'!$C$4:C33,'Suivi des notes'!C33) -> 0
B63: 31 | C63: ='Suivi des notes'!C34&COUNTIF('Suivi des notes'!$C$4:C34,'Suivi des notes'!C34) -> 0
B64: 32 | C64: ='Suivi des notes'!C35&COUNTIF('Suivi des notes'!$C$4:C35,'Suivi des notes'!C35) -> 0
B65: 33 | C65: ='Suivi des notes'!C36&COUNTIF('Suivi des notes'!$C$4:C36,'Suivi des notes'!C36) -> 0
B66: 34 | C66: ='Suivi des notes'!C37&COUNTIF('Suivi des notes'!$C$4:C37,'Suivi des notes'!C37) -> 0
B67: 35 | C67: ='Suivi des notes'!C38&COUNTIF('Suivi des notes'!$C$4:C38,'Suivi des notes'!C38) -> 0
B68: 36 | C68: ='Suivi des notes'!C39&COUNTIF('Suivi des notes'!$C$4:C39,'Suivi des notes'!C39) -> 0
B69: 37 | C69: ='Suivi des notes'!C40&COUNTIF('Suivi des notes'!$C$4:C40,'Suivi des notes'!C40) -> 0
B70: 38 | C70: ='Suivi des notes'!C41&COUNTIF('Suivi des notes'!$C$4:C41,'Suivi des notes'!C41) -> 0
B71: 39 | C71: ='Suivi des notes'!C42&COUNTIF('Suivi des notes'!$C$4:C42,'Suivi des notes'!C42) -> 0
B72: 40 | C72: ='Suivi des notes'!C43&COUNTIF('Suivi des notes'!$C$4:C43,'Suivi des notes'!C43) -> 0
B73: 41 | C73: ='Suivi des notes'!C44&COUNTIF('Suivi des notes'!$C$4:C44,'Suivi des notes'!C44) -> 0
B74: 42 | C74: ='Suivi des notes'!C45&COUNTIF('Suivi des notes'!$C$4:C45,'Suivi des notes'!C45) -> 0
B75: 43 | C75: ='Suivi des notes'!C46&COUNTIF('Suivi des notes'!$C$4:C46,'Suivi des notes'!C46) -> 0
B76: 44 | C76: ='Suivi des notes'!C47&COUNTIF('Suivi des notes'!$C$4:C47,'Suivi des notes'!C47) -> 0
B77: 45 | C77: ='Suivi des notes'!C48&COUNTIF('Suivi des notes'!$C$4:C48,'Suivi des notes'!C48) -> 0
B78: 46 | C78: ='Suivi des notes'!C49&COUNTIF('Suivi des notes'!$C$4:C49,'Suivi des notes'!C49) -> 0
B79: 47 | C79: ='Suivi des notes'!C50&COUNTIF('Suivi des notes'!$C$4:C50,'Suivi des notes'!C50) -> 0
B80: 48 | C80: ='Suivi des notes'!C51&COUNTIF('Suivi des notes'!$C$4:C51,'Suivi des notes'!C51) -> 0
B81: 49 | C81: ='Suivi des notes'!C52&COUNTIF('Suivi des notes'!$C$4:C52,'Suivi des notes'!C52) -> 0
B82: 50 | C82: ='Suivi des notes'!C53&COUNTIF('Suivi des notes'!$C$4:C53,'Suivi des notes'!C53) -> 0
B83: 51 | C83: ='Suivi des notes'!C54&COUNTIF('Suivi des notes'!$C$4:C54,'Suivi des notes'!C54) -> 0
B84: 52 | C84: ='Suivi des notes'!C55&COUNTIF('Suivi des notes'!$C$4:C55,'Suivi des notes'!C55) -> 0
B85: 53 | C85: ='Suivi des notes'!C56&COUNTIF('Suivi des notes'!$C$4:C56,'Suivi des notes'!C56) -> 0
B86: 54 | C86: ='Suivi des notes'!C57&COUNTIF('Suivi des notes'!$C$4:C57,'Suivi des notes'!C57) -> 0
B87: 55 | C87: ='Suivi des notes'!C58&COUNTIF('Suivi des notes'!$C$4:C58,'Suivi des notes'!C58) -> 0
B88: 56 | C88: ='Suivi des notes'!C59&COUNTIF('Suivi des notes'!$C$4:C59,'Suivi des notes'!C59) -> 0
B89: 57 | C89: ='Suivi des notes'!C60&COUNTIF('Suivi des notes'!$C$4:C60,'Suivi des notes'!C60) -> 0
B90: 58 | C90: ='Suivi des notes'!C61&COUNTIF('Suivi des notes'!$C$4:C61,'Suivi des notes'!C61) -> 0
B91: 59 | C91: ='Suivi des notes'!C62&COUNTIF('Suivi des notes'!$C$4:C62,'Suivi des notes'!C62) -> 0
B92: 60 | C92: ='Suivi des notes'!C63&COUNTIF('Suivi des notes'!$C$4:C63,'Suivi des notes'!C63) -> 0
B93: 61 | C93: ='Suivi des notes'!C64&COUNTIF('Suivi des notes'!$C$4:C64,'Suivi des notes'!C64) -> 0
B94: 62 | C94: ='Suivi des notes'!C65&COUNTIF('Suivi des notes'!$C$4:C65,'Suivi des notes'!C65) -> 0
B95: 63 | C95: ='Suivi des notes'!C66&COUNTIF('Suivi des notes'!$C$4:C66,'Suivi des notes'!C66) -> 0
B96: 64 | C96: ='Suivi des notes'!C67&COUNTIF('Suivi des notes'!$C$4:C67,'Suivi des notes'!C67) -> 0
B97: 65 | C97: ='Suivi des notes'!C68&COUNTIF('Suivi des notes'!$C$4:C68,'Suivi des notes'!C68) -> 0
B98: 66 | C98: ='Suivi des notes'!C69&COUNTIF('Suivi des notes'!$C$4:C69,'Suivi des notes'!C69) -> 0
B99: 67 | C99: ='Suivi des notes'!C70&COUNTIF('Suivi des notes'!$C$4:C70,'Suivi des notes'!C70) -> 0
B100: 68 | C100: ='Suivi des notes'!C71&COUNTIF('Suivi des notes'!$C$4:C71,'Suivi des notes'!C71) -> 0
B101: 69 | C101: ='Suivi des notes'!C72&COUNTIF('Suivi des notes'!$C$4:C72,'Suivi des notes'!C72) -> 0
B102: 70 | C102: ='Suivi des notes'!C73&COUNTIF('Suivi des notes'!$C$4:C73,'Suivi des notes'!C73) -> 0
B103: 71 | C103: ='Suivi des notes'!C74&COUNTIF('Suivi des notes'!$C$4:C74,'Suivi des notes'!C74) -> 0
B104: 72 | C104: ='Suivi des notes'!C75&COUNTIF('Suivi des notes'!$C$4:C75,'Suivi des notes'!C75) -> 0
B105: 73 | C105: ='Suivi des notes'!C76&COUNTIF('Suivi des notes'!$C$4:C76,'Suivi des notes'!C76) -> 0
B106: 74 | C106: ='Suivi des notes'!C77&COUNTIF('Suivi des notes'!$C$4:C77,'Suivi des notes'!C77) -> 0
B107: 75 | C107: ='Suivi des notes'!C78&COUNTIF('Suivi des notes'!$C$4:C78,'Suivi des notes'!C78) -> 0
B108: 76 | C108: ='Suivi des notes'!C79&COUNTIF('Suivi des notes'!$C$4:C79,'Suivi des notes'!C79) -> 0
B109: 77 | C109: ='Suivi des notes'!C80&COUNTIF('Suivi des notes'!$C$4:C80,'Suivi des notes'!C80) -> 0
B110: 78 | C110: ='Suivi des notes'!C81&COUNTIF('Suivi des notes'!$C$4:C81,'Suivi des notes'!C81) -> 0
B111: 79 | C111: ='Suivi des notes'!C82&COUNTIF('Suivi des notes'!$C$4:C82,'Suivi des notes'!C82) -> 0
B112: 80 | C112: ='Suivi des notes'!C83&COUNTIF('Suivi des notes'!$C$4:C83,'Suivi des notes'!C83) -> 0
B113: 81 | C113: ='Suivi des notes'!C84&COUNTIF('Suivi des notes'!$C$4:C84,'Suivi des notes'!C84) -> 0
B114: 82 | C114: ='Suivi des notes'!C85&COUNTIF('Suivi des notes'!$C$4:C85,'Suivi des notes'!C85) -> 0
B115: 83 | C115: ='Suivi des notes'!C86&COUNTIF('Suivi des notes'!$C$4:C86,'Suivi des notes'!C86) -> 0
B116: 84 | C116: ='Suivi des notes'!C87&COUNTIF('Suivi des notes'!$C$4:C87,'Suivi des notes'!C87) -> 0
B117: 85 | C117: ='Suivi des notes'!C88&COUNTIF('Suivi des notes'!$C$4:C88,'Suivi des notes'!C88) -> 0
B118: 86 | C118: ='Suivi des notes'!C89&COUNTIF('Suivi des notes'!$C$4:C89,'Suivi des notes'!C89) -> 0
B119: 87 | C119: ='Suivi des notes'!C90&COUNTIF('Suivi des notes'!$C$4:C90,'Suivi des notes'!C90) -> 0
B120: 88 | C120: ='Suivi des notes'!C91&COUNTIF('Suivi des notes'!$C$4:C91,'Suivi des notes'!C91) -> 0
B121: 89 | C121: ='Suivi des notes'!C92&COUNTIF('Suivi des notes'!$C$4:C92,'Suivi des notes'!C92) -> 0
B122: 90 | C122: ='Suivi des notes'!C93&COUNTIF('Suivi des notes'!$C$4:C93,'Suivi des notes'!C93) -> 0
B123: 91 | C123: ='Suivi des notes'!C94&COUNTIF('Suivi des notes'!$C$4:C94,'Suivi des notes'!C94) -> 0
B124: 92 | C124: ='Suivi des notes'!C95&COUNTIF('Suivi des notes'!$C$4:C95,'Suivi des notes'!C95) -> 0
B125: 93 | C125: ='Suivi des notes'!C96&COUNTIF('Suivi des notes'!$C$4:C96,'Suivi des notes'!C96) -> 0
B126: 94 | C126: ='Suivi des notes'!C97&COUNTIF('Suivi des notes'!$C$4:C97,'Suivi des notes'!C97) -> 0
B127: 95 | C127: ='Suivi des notes'!C98&COUNTIF('Suivi des notes'!$C$4:C98,'Suivi des notes'!C98) -> 0
B128: 96 | C128: ='Suivi des notes'!C99&COUNTIF('Suivi des notes'!$C$4:C99,'Suivi des notes'!C99) -> 0
B129: 97 | C129: ='Suivi des notes'!C100&COUNTIF('Suivi des notes'!$C$4:C100,'Suivi des notes'!C100) -> 0
B130: 98 | C130: ='Suivi des notes'!C101&COUNTIF('Suivi des notes'!$C$4:C101,'Suivi des notes'!C101) -> 0
B131: 99 | C131: ='Suivi des notes'!C102&COUNTIF('Suivi des notes'!$C$4:C102,'Suivi des notes'!C102) -> 0
B132: 100 | C132: ='Suivi des notes'!C103&COUNTIF('Suivi des notes'!$C$4:C103,'Suivi des notes'!C103) -> 0
B133: 101 | C133: ='Suivi des notes'!C104&COUNTIF('Suivi des notes'!$C$4:C104,'Suivi des notes'!C104) -> 0
B134: 102 | C134: ='Suivi des notes'!C105&COUNTIF('Suivi des notes'!$C$4:C105,'Suivi des notes'!C105) -> 0
B135: 103 | C135: ='Suivi des notes'!C106&COUNTIF('Suivi des notes'!$C$4:C106,'Suivi des notes'!C106) -> 0
B136: 104 | C136: ='Suivi des notes'!C107&COUNTIF('Suivi des notes'!$C$4:C107,'Suivi des notes'!C107) -> 0
B137: 105 | C137: ='Suivi des notes'!C108&COUNTIF('Suivi des notes'!$C$4:C108,'Suivi des notes'!C108) -> 0
B138: 106 | C138: ='Suivi des notes'!C109&COUNTIF('Suivi des notes'!$C$4:C109,'Suivi des notes'!C109) -> 0
B139: 107 | C139: ='Suivi des notes'!C110&COUNTIF('Suivi des notes'!$C$4:C110,'Suivi des notes'!C110) -> 0
B140: 108 | C140: ='Suivi des notes'!C111&COUNTIF('Suivi des notes'!$C$4:C111,'Suivi des notes'!C111) -> 0
B141: 109 | C141: ='Suivi des notes'!C112&COUNTIF('Suivi des notes'!$C$4:C112,'Suivi des notes'!C112) -> 0
B142: 110 | C142: ='Suivi des notes'!C113&COUNTIF('Suivi des notes'!$C$4:C113,'Suivi des notes'!C113) -> 0
B143: 111 | C143: ='Suivi des notes'!C114&COUNTIF('Suivi des notes'!$C$4:C114,'Suivi des notes'!C114) -> 0
B144: 112 | C144: ='Suivi des notes'!C115&COUNTIF('Suivi des notes'!$C$4:C115,'Suivi des notes'!C115) -> 0
B145: 113 | C145: ='Suivi des notes'!C116&COUNTIF('Suivi des notes'!$C$4:C116,'Suivi des notes'!C116) -> 0
B146: 114 | C146: ='Suivi des notes'!C117&COUNTIF('Suivi des notes'!$C$4:C117,'Suivi des notes'!C117) -> 0
B147: 115 | C147: ='Suivi des notes'!C118&COUNTIF('Suivi des notes'!$C$4:C118,'Suivi des notes'!C118) -> 0
B148: 116 | C148: ='Suivi des notes'!C119&COUNTIF('Suivi des notes'!$C$4:C119,'Suivi des notes'!C119) -> 0
B149: 117 | C149: ='Suivi des notes'!C120&COUNTIF('Suivi des notes'!$C$4:C120,'Suivi des notes'!C120) -> 0
B150: 118 | C150: ='Suivi des notes'!C121&COUNTIF('Suivi des notes'!$C$4:C121,'Suivi des notes'!C121) -> 0
B151: 119 | C151: ='Suivi des notes'!C122&COUNTIF('Suivi des notes'!$C$4:C122,'Suivi des notes'!C122) -> 0
B152: 120 | C152: ='Suivi des notes'!C123&COUNTIF('Suivi des notes'!$C$4:C123,'Suivi des notes'!C123) -> 0
B153: 121 | C153: ='Suivi des notes'!C124&COUNTIF('Suivi des notes'!$C$4:C124,'Suivi des notes'!C124) -> 0
B154: 122 | C154: ='Suivi des notes'!C125&COUNTIF('Suivi des notes'!$C$4:C125,'Suivi des notes'!C125) -> 0
B155: 123 | C155: ='Suivi des notes'!C126&COUNTIF('Suivi des notes'!$C$4:C126,'Suivi des notes'!C126) -> 0
B156: 124 | C156: ='Suivi des notes'!C127&COUNTIF('Suivi des notes'!$C$4:C127,'Suivi des notes'!C127) -> 0
B157: 125 | C157: ='Suivi des notes'!C128&COUNTIF('Suivi des notes'!$C$4:C128,'Suivi des notes'!C128) -> 0
B158: 126 | C158: ='Suivi des notes'!C129&COUNTIF('Suivi des notes'!$C$4:C129,'Suivi des notes'!C129) -> 0
B159: 127 | C159: ='Suivi des notes'!C130&COUNTIF('Suivi des notes'!$C$4:C130,'Suivi des notes'!C130) -> 0
B160: 128 | C160: ='Suivi des notes'!C131&COUNTIF('Suivi des notes'!$C$4:C131,'Suivi des notes'!C131) -> 0
B161: 129 | C161: ='Suivi des notes'!C132&COUNTIF('Suivi des notes'!$C$4:C132,'Suivi des notes'!C132) -> 0
B162: 130 | C162: ='Suivi des notes'!C133&COUNTIF('Suivi des notes'!$C$4:C133,'Suivi des notes'!C133) -> 0
B163: 131 | C163: ='Suivi des notes'!C134&COUNTIF('Suivi des notes'!$C$4:C134,'Suivi des notes'!C134) -> 0
B164: 132 | C164: ='Suivi des notes'!C135&COUNTIF('Suivi des notes'!$C$4:C135,'Suivi des notes'!C135) -> 0
B165: 133 | C165: ='Suivi des notes'!C136&COUNTIF('Suivi des notes'!$C$4:C136,'Suivi des notes'!C136) -> 0
B166: 134 | C166: ='Suivi des notes'!C137&COUNTIF('Suivi des notes'!$C$4:C137,'Suivi des notes'!C137) -> 0
B167: 135 | C167: ='Suivi des notes'!C138&COUNTIF('Suivi des notes'!$C$4:C138,'Suivi des notes'!C138) -> 0
B168: 136 | C168: ='Suivi des notes'!C139&COUNTIF('Suivi des notes'!$C$4:C139,'Suivi des notes'!C139) -> 0
B169: 137 | C169: ='Suivi des notes'!C140&COUNTIF('Suivi des notes'!$C$4:C140,'Suivi des notes'!C140) -> 0
B170: 138 | C170: ='Suivi des notes'!C141&COUNTIF('Suivi des notes'!$C$4:C141,'Suivi des notes'!C141) -> 0
B171: 139 | C171: ='Suivi des notes'!C142&COUNTIF('Suivi des notes'!$C$4:C142,'Suivi des notes'!C142) -> 0
B172: 140 | C172: ='Suivi des notes'!C143&COUNTIF('Suivi des notes'!$C$4:C143,'Suivi des notes'!C143) -> 0
B173: 141 | C173: ='Suivi des notes'!C144&COUNTIF('Suivi des notes'!$C$4:C144,'Suivi des notes'!C144) -> 0
B174: 142 | C174: ='Suivi des notes'!C145&COUNTIF('Suivi des notes'!$C$4:C145,'Suivi des notes'!C145) -> 0
B175: 143 | C175: ='Suivi des notes'!C146&COUNTIF('Suivi des notes'!$C$4:C146,'Suivi des notes'!C146) -> 0
B176: 144 | C176: ='Suivi des notes'!C147&COUNTIF('Suivi des notes'!$C$4:C147,'Suivi des notes'!C147) -> 0
B177: 145 | C177: ='Suivi des notes'!C148&COUNTIF('Suivi des notes'!$C$4:C148,'Suivi des notes'!C148) -> 0
B178: 146 | C178: ='Suivi des notes'!C149&COUNTIF('Suivi des notes'!$C$4:C149,'Suivi des notes'!C149) -> 0
B179: 147 | C179: ='Suivi des notes'!C150&COUNTIF('Suivi des notes'!$C$4:C150,'Suivi des notes'!C150) -> 0
B180: 148 | C180: ='Suivi des notes'!C151&COUNTIF('Suivi des notes'!$C$4:C151,'Suivi des notes'!C151) -> 0
B181: 149 | C181: ='Suivi des notes'!C152&COUNTIF('Suivi des notes'!$C$4:C152,'Suivi des notes'!C152) -> 0
B182: 150 | C182: ='Suivi des notes'!C153&COUNTIF('Suivi des notes'!$C$4:C153,'Suivi des notes'!C153) -> 0
B183: 151 | C183: ='Suivi des notes'!C154&COUNTIF('Suivi des notes'!$C$4:C154,'Suivi des notes'!C154) -> 0
B184: 152 | C184: ='Suivi des notes'!C155&COUNTIF('Suivi des notes'!$C$4:C155,'Suivi des notes'!C155) -> 0
B185: 153 | C185: ='Suivi des notes'!C156&COUNTIF('Suivi des notes'!$C$4:C156,'Suivi des notes'!C156) -> 0
B186: 154 | C186: ='Suivi des notes'!C157&COUNTIF('Suivi des notes'!$C$4:C157,'Suivi des notes'!C157) -> 0
B187: 155 | C187: ='Suivi des notes'!C158&COUNTIF('Suivi des notes'!$C$4:C158,'Suivi des notes'!C158) -> 0
B188: 156 | C188: ='Suivi des notes'!C159&COUNTIF('Suivi des notes'!$C$4:C159,'Suivi des notes'!C159) -> 0
B189: 157 | C189: ='Suivi des notes'!C160&COUNTIF('Suivi des notes'!$C$4:C160,'Suivi des notes'!C160) -> 0
B190: 158 | C190: ='Suivi des notes'!C161&COUNTIF('Suivi des notes'!$C$4:C161,'Suivi des notes'!C161) -> 0
B191: 159 | C191: ='Suivi des notes'!C162&COUNTIF('Suivi des notes'!$C$4:C162,'Suivi des notes'!C162) -> 0
B192: 160 | C192: ='Suivi des notes'!C163&COUNTIF('Suivi des notes'!$C$4:C163,'Suivi des notes'!C163) -> 0
B193: 161 | C193: ='Suivi des notes'!C164&COUNTIF('Suivi des notes'!$C$4:C164,'Suivi des notes'!C164) -> 0
B194: 162 | C194: ='Suivi des notes'!C165&COUNTIF('Suivi des notes'!$C$4:C165,'Suivi des notes'!C165) -> 0
B195: 163 | C195: ='Suivi des notes'!C166&COUNTIF('Suivi des notes'!$C$4:C166,'Suivi des notes'!C166) -> 0
B196: 164 | C196: ='Suivi des notes'!C167&COUNTIF('Suivi des notes'!$C$4:C167,'Suivi des notes'!C167) -> 0
B197: 165 | C197: ='Suivi des notes'!C168&COUNTIF('Suivi des notes'!$C$4:C168,'Suivi des notes'!C168) -> 0
B198: 166 | C198: ='Suivi des notes'!C169&COUNTIF('Suivi des notes'!$C$4:C169,'Suivi des notes'!C169) -> 0
B199: 167 | C199: ='Suivi des notes'!C170&COUNTIF('Suivi des notes'!$C$4:C170,'Suivi des notes'!C170) -> 0
B200: 168 | C200: ='Suivi des notes'!C171&COUNTIF('Suivi des notes'!$C$4:C171,'Suivi des notes'!C171) -> 0
B201: 169 | C201: ='Suivi des notes'!C172&COUNTIF('Suivi des notes'!$C$4:C172,'Suivi des notes'!C172) -> 0
B202: 170 | C202: ='Suivi des notes'!C173&COUNTIF('Suivi des notes'!$C$4:C173,'Suivi des notes'!C173) -> 0
B203: 171 | C203: ='Suivi des notes'!C174&COUNTIF('Suivi des notes'!$C$4:C174,'Suivi des notes'!C174) -> 0
... 454 more rows
